bitfinex/quotes_ETHUSD_20250130
["timestamp","ask_amount","ask_price","bid_price","bid_amount"]
[1738217166201,6.25524,3201.2,3200.7,0.8331]
[1738217166402,0.08201358,3200.8,3200.7,0.8331]
[1738217166602,3.13133,3201.2,3200.7,0.8331]
[1738217166959,6.25524,3201.2,3200.7,0.8331]
[1738217167115,3.2059738,3201.1,3200.7,0.8331]
[1738217167963,3.12402,3201.0,3200.4,2.33859177]
[1738217168164,3.12402,3201.0,3200.5,3.12448]
[1738217168364,0.08201699,3200.9,3200.5,3.12448]
[1738217168564,3.12385,3201.2,3200.6,3.1244]
[1738217168729,3.94629,3201.8,3201.1,3.12385]
[1738217168933,6.24662,3201.8,3201.2,0.8141]
[1738217169169,3.12329,3201.8,3201.2,0.8141]
[1738217169476,3.12336,3201.7,3201.2,3.93789]
[1738217169674,3.12345,3201.6,3201.2,0.8141]
[1738217170132,3.12345,3201.6,3200.8,4.64862177]
[1738217170133,3.12344,3201.6,3200.8,4.64862177]
[1738217170333,0.7941,3201.5,3200.9,0.7598]
[1738217170743,3.12344,3201.6,3200.9,3.88391]
[1738217170948,3.12344,3201.6,3200.9,3.12411]
[1738217171150,2.97778149,3202.3,3200.9,3.12411]
[1738217171151,1e-05,3203.4,3202.2,3.12281]
[1738217171462,1e-05,3203.4,3201.2,0.09893414]
[1738217171463,1e-05,3203.4,3202.5,3.12249]
[1738217171669,3.12176,3203.4,3202.5,3.12249]
[1738217171985,3.12195,3203.2,3202.3,0.8122]
[1738217172165,1.11195441,3203.0,3202.3,0.8122]
[1738217172353,3.12223,3202.9,3202.3,0.8122]
[1738217172547,3.12223,3202.9,3202.3,3.93495]
[1738217173679,0.7831,3203.0,3202.3,0.8122]
[1738217173984,0.7831,3203.0,3201.1,0.2]
[1738217173985,2.97028149,3202.9,3202.0,0.7545]
[1738217174290,3.12313,3202.0,3201.4,0.7545]
[1738217174452,3.12304,3202.0,3201.4,0.7545]
[1738217174636,0.07178172,3201.9,3201.4,3.72478149]
[1738217174887,3.94643,3202.4,3201.4,6.84838149]
[1738217175087,3.12285,3202.2,3201.4,3.72478149]
[1738217175287,3.12351,3201.6,3201.1,0.7563]
[1738217175531,0.07174593,3201.5,3201.4,3.92803]
[1738217175739,3.12272,3202.4,3201.6,3.12334]
[1738217175883,3.12272,3202.4,3201.7,6.09360149]
[1738217176085,3.12246,3202.6,3202.0,0.8044]
[1738217176439,3.12246,3202.6,3202.0,3.92744]
[1738217176733,0.0075,3202.9,3202.0,3.92744]
[1738217176734,0.0075,3202.9,3202.0,6.89772149]
[1738217176894,3.1223,3202.8,3202.0,6.89772149]
[1738217177093,0.0075,3202.9,3202.0,6.89772149]
[1738217177304,3.12236,3202.7,3202.1,3.12294]
[1738217178403,0.0715969,3202.6,3202.1,3.12294]
[1738217178586,3.12217,3202.9,3202.0,3.77468149]
[1738217178587,3.12217,3202.9,3202.2,3.12283]
[1738217178788,0.0715935,3202.5,3202.2,3.12283]
[1738217178990,3.12217,3202.9,3202.2,3.12283]
[1738217179189,0.07159578,3202.4,3202.2,3.12283]
[1738217179432,3.12226,3202.8,3202.2,3.12283]
[1738217179635,0.07158205,3202.3,3202.2,3.12283]
[1738217179839,3.12226,3202.8,3202.2,3.12283]
[1738217180043,0.07158205,3202.3,3202.0,3.77468149]
[1738217180221,3.12226,3202.8,3202.0,3.77468149]
[1738217180533,3.12226,3202.8,3202.2,3.12284]
[1738217180734,3.12236,3202.7,3202.0,6.89772149]
[1738217181302,3.12236,3202.7,3202.1,3.12288]
[1738217181728,3.12236,3202.7,3202.3,2.97028149]
[1738217183018,3.12236,3202.7,3202.1,3.12288]
[1738217183428,3.12236,3202.7,3202.0,3.77468149]
[1738217183736,3.12236,3202.7,3202.3,2.97028149]
[1738217184345,3.12247,3202.6,3202.3,2.97028149]
[1738217185517,3.12236,3202.7,3202.3,2.97028149]
[1738217186064,3.1222,3202.9,3202.6,2.97028149]
[1738217186412,3.12226,3202.8,3202.6,2.97028149]
[1738217187025,3.12226,3202.8,3202.3,2.97028149]
[1738217187421,3.12207,3203.0,3202.7,2.97028149]
[1738217187645,0.1665941,3203.1,3202.7,2.97028149]
[1738217188342,0.1665941,3203.1,3202.7,6.09261149]
[1738217188713,0.1665941,3203.1,3203.0,2.97028149]
[1738217189032,0.1665941,3203.1,3202.8,0.8081]
[1738217189735,0.1665941,3203.1,3203.0,2.97028149]
[1738217190141,0.1665941,3203.1,3202.8,0.8081]
[1738217190859,0.1665941,3203.1,3203.0,2.97028149]
[1738217191039,0.1665941,3203.1,3202.8,0.8081]
[1738217191704,0.1665941,3203.1,3203.0,2.97028149]
[1738217192154,0.1665941,3203.1,3202.8,0.8081]
[1738217192625,0.1665941,3203.1,3203.0,2.97028149]
[1738217193151,0.1665941,3203.1,3202.8,0.8081]
[1738217193539,0.23841271,3203.1,3202.8,0.8081]
[1738217195470,0.23841271,3203.1,3202.7,2.97028149]
[1738217195763,3.12225,3202.9,3202.2,2.97028149]
[1738217195922,3.12219,3202.9,3202.2,6.09305149]
[1738217196337,3.19007749,3202.8,3202.2,6.09305149]
[1738217196770,0.06778749,3202.8,3202.3,3.12272]
[1738217196978,0.06778749,3202.8,3202.5,2.97028149]
[1738217197153,0.06778749,3202.8,3202.6,0.8209]
[1738217197328,0.1665941,3203.1,3202.7,3.12236]
[1738217197526,0.1665941,3203.1,3202.8,2.97028149]
[1738217197731,0.0676907,3203.0,3202.8,2.97028149]
[1738217198972,0.0676907,3203.0,3202.8,6.09253149]
[1738217199678,0.0676907,3203.0,3202.9,3.12217]
[1738217200180,1e-05,3203.4,3203.3,3.12178]
[1738217200344,1e-05,3203.4,3203.3,9.09206149]
[1738217200548,1e-05,3203.4,3203.3,9.87966149]
[1738217200745,1e-05,3203.4,3203.3,1.3376]
[1738217200981,1e-05,3203.4,3203.3,0.7876]
[1738217201191,0.05927085,3203.4,3203.3,0.7876]
[1738217201546,0.05927085,3203.4,3203.3,0.23104117]
[1738217203674,0.05927085,3203.4,3203.0,3.12206]
[1738217203675,0.05927085,3203.4,3203.2,0.23104117]
[1738217204928,0.05927085,3203.4,3203.3,0.23104117]
[1738217206603,0.05927085,3203.4,3203.2,0.23104117]
[1738217208192,0.05927085,3203.4,3203.1,0.23104117]
[1738217208396,0.05927085,3203.4,3203.1,3.35300117]
[1738217209591,0.05927085,3203.4,3203.1,0.23104117]
[1738217209793,3.12169,3203.4,3203.1,0.23104117]
[1738217210113,3.17946075,3203.3,3203.2,0.23104117]
[1738217211012,4.00856075,3203.3,3203.2,0.23104117]
[1738217211385,4.00856075,3203.3,3203.0,0.23104117]
[1738217212917,4.00856075,3203.3,3203.1,0.23104117]
[1738217213613,4.00613017,3203.3,3203.1,0.23104117]
[1738217213835,0.88675075,3203.3,3203.1,0.23104117]
[1738217214176,0.05765075,3203.3,3202.8,3.35328117]
[1738217214408,0.05765075,3203.3,3202.9,0.7574]
[1738217214724,0.05765075,3203.3,3202.9,3.87956]
[1738217215399,0.05765075,3203.3,3202.8,0.23104117]
[1738217215600,3.17946075,3203.3,3203.0,0.23104117]
[1738217216509,0.05765075,3203.3,3203.0,0.23104117]
[1738217217218,0.05765075,3203.3,3203.1,0.23104117]
[1738217218592,1e-05,3203.4,3202.9,3.12211]
[1738217218795,0.05745374,3203.2,3202.9,3.12211]
[1738217219021,1e-05,3203.4,3202.9,3.12211]
[1738217219180,0.05745034,3203.1,3202.9,3.12211]
[1738217219380,1e-05,3203.4,3202.9,3.12211]
[1738217219591,1e-05,3203.4,3203.0,0.23141111]
[1738217220842,3.12177,3203.4,3203.0,0.23141111]
[1738217221046,1e-05,3203.4,3203.2,0.8271]
[1738217221346,1e-05,3203.4,3203.3,10.46916149]
[1738217221904,1e-05,3203.4,3203.3,11.09898976]
[1738217222103,0.8196,3205.1,3203.5,0.55]
[1738217222303,3.93938,3205.4,3204.6,0.8318]
[1738217222510,0.8196,3205.4,3204.9,3.12015]
[1738217222726,0.8196,3205.4,3205.0,3.12011]
[1738217222920,0.8196,3205.4,3204.6,3.1205]
[1738217223556,0.054037,3205.3,3204.6,3.1205]
[1738217223847,0.054037,3205.3,3204.4,3.1207]
[1738217223848,3.12009,3205.1,3204.4,3.1207]
[1738217224316,0.05450521,3205.0,3204.5,3.1206]
[1738217225143,0.05450521,3205.0,3204.4,3.12069]
[1738217225901,0.05450521,3205.0,3204.5,3.12053]
[1738217227008,3.11985,3205.3,3204.5,3.12053]
[1738217227349,0.05470455,3204.9,3204.5,3.12053]
[1738217227522,3.12002,3205.1,3204.5,3.12053]
[1738217227723,0.05470115,3204.8,3204.5,3.12053]
[1738217227918,3.12002,3205.1,3204.5,3.12053]
[1738217228559,0.05470794,3205.0,3204.5,3.12053]
[1738217228921,3.513785,3205.3,3204.6,3.1205]
[1738217229120,0.05476534,3204.9,3204.6,3.1205]
[1738217229440,0.05477123,3204.8,3204.7,4.44431]
[1738217229620,0.8313,3205.7,3204.9,3.12017]
[1738217229952,3.95076,3205.7,3205.1,3.11993]
[1738217230249,3.11969,3205.5,3204.7,3.1204]
[1738217230456,0.8313,3205.7,3204.4,0.7739]
[1738217230608,0.0075,3206.0,3204.4,0.7739]
[1738217230609,3.12003,3205.1,3204.5,3.12054]
[1738217230807,0.7539,3205.0,3204.5,3.12054]
[1738217231922,0.7539,3205.0,3204.4,0.7739]
[1738217232121,0.7539,3205.0,3204.5,3.12058]
[1738217232460,0.7539,3205.0,3204.4,0.7739]
[1738217232637,3.87406,3205.0,3204.3,3.1208]
[1738217232841,3.12023,3204.9,3204.3,3.1208]
[1738217233354,0.7539,3205.0,3204.3,3.1208]
[1738217233553,0.7539,3205.0,3204.4,3.12068]
[1738217233716,1.141293,3205.0,3204.4,3.12068]
[1738217233916,4.261503,3205.0,3204.4,3.12068]
[1738217234253,3.12038,3204.8,3204.2,3.1209]
[1738217235870,3.12034,3204.8,3204.1,3.87393]
[1738217236051,3.8585203,3204.8,3203.8,0.8289]
[1738217236373,3.12083,3204.3,3203.6,3.12139]
[1738217236672,3.12083,3204.3,3203.7,3.12135]
[1738217237266,3.12091,3204.2,3203.7,3.12135]
[1738217237564,3.94872,3204.1,3203.5,3.12152]
[1738217237775,3.94872,3204.1,3203.4,3.87894]
[1738217238125,0.7601,3204.2,3203.6,3.12148]
[1738217238363,0.7601,3204.2,3203.8,3.12125]
[1738217238575,0.05448404,3204.1,3203.8,3.12125]
[1738217239444,0.05448404,3204.1,3203.6,3.12148]
[1738217239639,3.17552404,3204.1,3203.4,6.84923149]
[1738217239972,3.12112,3204.0,3203.4,3.12165]
[1738217240182,0.05430986,3203.9,3203.4,6.24324]
[1738217240402,0.05430986,3203.9,3203.5,3.12158]
[1738217240743,3.12111,3204.0,3203.4,3.12159]
[1738217240969,0.05430986,3203.9,3203.4,3.12159]
[1738217241170,3.1212,3203.9,3203.3,3.12173]
[1738217241369,0.05428747,3203.8,3203.3,3.12173]
[1738217241961,0.8219,3203.7,3203.3,3.12173]
[1738217242355,0.05426167,3203.6,3203.3,3.12173]
[1738217242594,0.05426167,3203.6,3203.1,6.09223149]
[1738217242788,0.8219,3203.7,3203.2,3.12187]
[1738217242972,0.8219,3203.7,3203.1,3.12195]
[1738217243180,0.05418943,3203.6,3203.2,3.12186]
[1738217243381,0.05418943,3203.6,3203.1,3.12195]
[1738217244600,0.05418943,3203.6,3203.2,3.12185]
[1738217245681,0.05418943,3203.6,3203.1,3.12195]
[1738217245877,0.05418943,3203.6,3203.2,3.12185]
[1738217250521,0.05418943,3203.6,3203.0,3.12205]
[1738217250728,3.17569943,3203.6,3203.0,3.12205]
[1738217251228,3.17569943,3203.6,3203.1,3.12195]
[1738217251588,0.05418943,3203.6,3203.1,3.12195]
[1738217251784,3.9433,3203.7,3203.1,3.12195]
[1738217251985,0.05418943,3203.6,3203.2,3.12182]
[1738217252525,0.05418943,3203.6,3203.4,3.12165]
[1738217253401,0.05418943,3203.6,3203.2,3.12183]
[1738217253947,3.17570943,3203.6,3203.0,3.12205]
[1738217254157,0.05418943,3203.6,3203.0,6.24405]
[1738217254320,0.05418943,3203.6,3202.8,0.8272]
[1738217254651,7.0648,3203.7,3203.0,3.12206]
[1738217254821,0.05203652,3203.5,3203.0,3.12206]
[1738217255022,3.17354991,3203.6,3203.0,3.12206]
[1738217255248,0.05203312,3203.4,3203.0,3.12206]
[1738217255449,4.64981,3203.7,3203.1,3.12195]
[1738217255649,0.05202972,3203.3,3202.9,3.12209]
[1738217255825,3.12155,3203.6,3203.0,3.12204]
[1738217256024,0.05202632,3203.2,3203.0,3.12204]
[1738217256224,3.12155,3203.6,3203.0,3.12204]
[1738217256428,0.05202292,3203.1,3203.0,3.12204]
[1738217256618,3.12155,3203.6,3203.0,3.12204]
[1738217256819,0.05202292,3203.1,3203.0,3.12204]
[1738217257146,3.12155,3203.6,3202.6,3.7939]
[1738217257462,3.12155,3203.6,3203.0,3.12201]
[1738217257679,0.05203652,3203.5,3203.0,3.12201]
[1738217258008,0.05203652,3203.5,3203.3,3.12168]
[1738217258209,3.12098,3204.2,3203.3,0.833]
[1738217258210,0.8063,3204.0,3203.3,0.833]
[1738217258443,0.05206914,3203.9,3203.7,3.12137]
[1738217258746,0.8063,3204.0,3203.7,3.12137]
[1738217259107,0.05203488,3203.9,3203.5,3.12152]
[1738217260163,0.05203488,3203.9,3203.6,3.12145]
[1738217261541,0.05203488,3203.9,3203.7,3.12137]
[1738217261711,0.05203488,3203.9,3203.8,3.12129]
[1738217262146,0.05203488,3203.9,3203.6,3.1214]
[1738217262367,0.7927,3204.2,3203.6,3.1214]
[1738217262662,0.7927,3204.2,3203.7,3.12139]
[1738217262807,0.05234883,3204.1,3203.7,3.12139]
[1738217263012,0.05234883,3204.1,3203.7,3.35276584]
[1738217264814,0.05234883,3204.1,3203.8,0.23137584]
[1738217265163,0.05234883,3204.1,3203.8,3.35265584]
[1738217265365,0.05234883,3204.1,3203.8,0.23137584]
[1738217266218,0.05234883,3204.1,3203.9,0.23137584]
[1738217267716,0.05234883,3204.1,3203.8,0.23137584]
[1738217268612,3.12115,3204.0,3203.8,0.23137584]
[1738217268813,0.82896264,3203.9,3203.8,0.23137584]
[1738217269666,0.82896264,3203.9,3203.5,0.23137584]
[1738217270748,3.95016264,3203.9,3203.5,0.23137584]
[1738217270958,3.95016264,3203.9,3203.6,0.23137584]
[1738217271464,0.82896264,3203.9,3203.6,0.23137584]
[1738217272166,0.82896264,3203.9,3203.5,3.12158]
[1738217274968,0.82896264,3203.9,3203.6,0.54386031]
[1738217275164,0.05016264,3203.9,3203.7,3.12136]
[1738217275529,0.8209,3204.1,3203.7,3.12136]
[1738217275857,3.9419,3204.1,3203.6,0.23170231]
[1738217276021,3.17118563,3204.0,3203.6,0.23170231]
[1738217276226,4.25989856,3203.9,3203.8,0.23170231]
[1738217276469,4.3099508,3203.9,3203.8,0.23170231]
[1738217277169,7.28773229,3203.9,3203.8,0.23170231]
[1738217277461,3.12187,3203.2,3203.1,0.23170231]
[1738217277662,4.28121694,3203.2,3203.1,0.23170231]
[1738217277965,3.96902994,3203.2,3203.1,0.23170231]
[1738217278868,3.96902994,3203.2,3202.6,3.12243]
[1738217279170,3.96902994,3203.2,3202.6,6.2448]
[1738217279565,0.84715994,3203.2,3202.7,3.12236]
[1738217280113,0.7972,3203.2,3202.7,3.12236]
[1738217280253,0.7972,3203.2,3202.7,3.35406231]
[1738217280571,0.04970524,3203.1,3202.7,3.35406231]
[1738217281480,0.04970524,3203.1,3202.7,3.12236]
[1738217283272,0.04970524,3203.1,3202.8,3.12226]
[1738217284571,0.04970524,3203.1,3203.0,3.12207]
[1738217284774,0.04970524,3203.1,3203.0,3.88467]
[1738217285105,0.77,3203.7,3203.3,3.12176]
[1738217285388,0.04776115,3203.1,3202.7,3.12228]
[1738217285684,0.77,3203.3,3202.7,3.12228]
[1738217285685,0.04780351,3203.0,3202.7,3.12228]
[1738217285890,0.77,3203.3,3202.7,3.12228]
[1738217286188,0.04780011,3202.9,3202.7,3.12228]
[1738217286342,0.77,3203.3,3202.8,3.12226]
[1738217286784,0.04781031,3203.2,3202.8,3.12226]
[1738217287094,0.04781031,3203.2,3203.0,3.12206]
[1738217287750,0.04781031,3203.2,3202.9,3.12214]
[1738217288086,0.04781031,3203.2,3202.9,3.35352566]
[1738217288847,0.04781031,3203.2,3202.9,3.12214]
[1738217289789,3.16975031,3203.2,3202.4,3.12259]
[1738217290000,3.16975031,3203.2,3202.6,3.12245]
[1738217290486,3.16975031,3203.2,3202.5,3.35391142]
[1738217290692,6.29172031,3203.2,3202.5,3.35391142]
[1738217291094,3.16975031,3203.2,3202.5,3.35391142]
[1738217291414,3.12197,3203.1,3202.5,3.35391142]
[1738217291562,3.12197,3203.1,3202.6,3.12246]
[1738217291765,0.04779168,3203.0,3202.6,3.12246]
[1738217292552,0.8036,3202.9,3202.6,3.12246]
[1738217293093,0.8036,3202.9,3202.4,3.12259]
[1738217293094,0.04775732,3202.8,3202.4,3.12259]
[1738217293396,0.04775732,3202.8,3202.5,3.12255]
[1738217293548,0.04775732,3202.8,3202.4,3.12259]
[1738217293990,0.04775732,3202.8,3202.5,3.12254]
[1738217294398,0.04775732,3202.8,3202.4,3.12259]
[1738217294892,0.04775732,3202.8,3202.5,3.12254]
[1738217295099,0.04775732,3202.8,3202.1,0.8072]
[1738217295341,3.1224,3202.7,3202.2,3.12283]
[1738217295696,0.8071,3202.5,3202.0,3.12303]
[1738217296054,0.04766365,3202.4,3201.9,3.1231]
[1738217296341,0.04766365,3202.4,3202.1,3.12293]
[1738217297312,0.04766365,3202.4,3202.2,3.12284]
[1738217300436,0.04766365,3202.4,3202.3,3.12275]
[1738217300633,0.7758,3202.9,3202.2,3.90204]
[1738217300838,0.7758,3202.9,3202.5,3.12254]
[1738217301044,0.7758,3202.9,3202.2,3.74948149]
[1738217301248,0.7943,3203.2,3202.7,3.12234]
[1738217301407,0.7943,3203.2,3202.8,3.12226]
[1738217301744,0.7943,3203.2,3202.7,3.12234]
[1738217301948,0.7943,3203.2,3202.5,3.12246]
[1738217302336,3.122,3203.1,3202.5,3.12246]
[1738217304543,3.122,3203.1,3202.6,3.12245]
[1738217305245,3.122,3203.1,3202.5,3.12251]
[1738217305419,3.12218,3202.9,3202.4,3.12263]
[1738217305628,3.12239,3202.7,3202.2,3.12284]
[1738217305940,3.12239,3202.7,3201.9,3.93309]
[1738217306142,3.12267,3202.4,3201.9,3.12309]
[1738217306348,3.12267,3202.4,3201.7,3.93333]
[1738217306644,0.04593416,3202.3,3201.7,3.12333]
[1738217306844,3.12267,3202.4,3201.7,6.24661]
[1738217307144,3.16874879,3202.2,3202.0,0.23160911]
[1738217307348,3.12286,3202.2,3202.0,0.23160911]
[1738217307644,0.80938539,3202.1,3202.0,0.23160911]
[1738217308630,0.80938539,3202.1,3201.8,3.12319]
[1738217309335,0.80938539,3202.1,3201.7,0.23160911]
[1738217309714,0.80938539,3202.1,3201.7,3.35493911]
[1738217310259,0.80938539,3202.1,3201.8,0.23160911]
[1738217311961,0.80938539,3202.1,3201.7,0.23160911]
[1738217313053,0.80938539,3202.1,3201.7,3.35493911]
[1738217313253,0.80938539,3202.1,3201.8,0.23160911]
[1738217316138,0.80938539,3202.1,3201.8,3.35484911]
[1738217316441,0.80938539,3202.1,3201.8,0.23160911]
[1738217321975,0.04588539,3202.1,3201.8,0.23160911]
[1738217322282,0.04410186,3202.0,3201.9,3.12307]
[1738217322483,0.8006,3202.3,3202.0,3.12303]
[1738217323993,0.8069,3202.6,3202.0,0.7749]
[1738217324147,0.8069,3202.9,3202.6,3.12245]
[1738217324489,0.8207,3203.2,3202.7,3.12232]
[1738217325390,3.94262,3203.2,3202.5,0.8017]
[1738217325690,3.94262,3203.2,3202.6,3.12243]
[1738217326251,3.12199,3203.1,3202.5,3.92425]
[1738217326788,0.8207,3203.2,3202.6,3.12238]
[1738217327493,3.94259,3203.2,3202.6,3.12238]
[1738217328060,3.94259,3203.2,3202.5,0.8017]
[1738217328061,0.7527,3202.6,3201.8,0.7777]
[1738217328386,3.87498,3202.8,3202.2,3.90052]
[1738217328595,0.03980561,3202.5,3202.2,3.90052]
[1738217328755,3.87498,3202.8,3202.2,3.12282]
[1738217329093,4.574685,3202.8,3202.2,3.12282]
[1738217329294,0.03987721,3202.7,3202.2,3.12282]
[1738217330064,0.03987721,3202.7,3202.3,3.12275]
[1738217330267,3.93157,3203.0,3202.4,3.12263]
[1738217330464,0.03986968,3202.6,3202.4,3.12263]
[1738217330669,3.93157,3203.0,3202.4,3.12263]
[1738217330905,0.03986629,3202.5,3202.4,3.12263]
[1738217331102,3.93157,3203.0,3202.4,3.12263]
[1738217331271,0.03986629,3202.5,3202.4,3.12263]
[1738217331599,3.12189,3203.2,3202.6,3.12246]
[1738217332498,3.91029,3203.3,3202.7,3.12236]
[1738217334511,3.12189,3203.2,3202.5,3.12254]
[1738217334808,3.12252,3202.6,3201.9,0.7878]
[1738217335006,3.12252,3202.6,3202.0,3.12304]
[1738217336306,3.12252,3202.6,3202.1,0.23149793]
[1738217338090,6.24507,3202.6,3202.1,0.23149793]
[1738217338275,3.12267,3202.4,3202.1,0.23149793]
[1738217338454,0.7887,3202.3,3202.1,0.23149793]
[1738217339373,0.7887,3202.3,3201.9,0.23149793]
[1738217340439,0.7887,3202.3,3202.0,0.23149793]
[1738217340562,3.91147,3202.3,3202.0,0.23149793]
[1738217340763,0.7887,3202.3,3202.0,0.23149793]
[1738217342099,0.7887,3202.3,3201.9,0.23149793]
[1738217343410,0.7887,3202.3,3201.8,3.12323]
[1738217343715,0.03789758,3202.2,3201.8,3.12323]
[1738217343996,0.7887,3202.3,3201.8,3.12323]
[1738217344234,0.03788815,3202.1,3201.8,6.24639]
[1738217344406,0.03789758,3202.2,3201.8,6.24634]
[1738217344600,0.03788372,3202.0,3201.8,3.12316]
[1738217344805,0.7887,3202.3,3201.8,3.12316]
[1738217345003,0.03778898,3201.9,3201.7,3.92332]
[1738217345234,3.91155,3202.3,3201.7,3.92332]
[1738217345448,0.03750295,3201.8,3201.7,3.92332]
[1738217345647,3.91155,3202.3,3201.7,3.92332]
[1738217345813,0.03750295,3201.8,3201.7,3.92332]
[1738217345998,3.91155,3202.3,3201.8,3.12323]
[1738217347345,3.12302,3202.1,3201.9,0.23164408]
[1738217347521,3.9115,3202.3,3201.9,0.23164408]
[1738217347733,3.12286,3202.2,3201.9,0.23164408]
[1738217348451,3.12286,3202.2,3201.6,3.12335]
[1738217348744,3.9115,3202.3,3201.3,3.77968149]
[1738217348913,3.123,3202.1,3201.3,6.90336149]
[1738217349116,3.123,3202.1,3201.5,3.12346]
[1738217349831,3.123,3202.1,3201.6,0.23160278]
[1738217349995,6.24604,3202.1,3201.6,0.23160278]
[1738217350193,3.123,3202.1,3201.6,0.23160278]
[1738217350455,3.12308,3202.0,3201.6,0.23160278]
[1738217350636,3.123,3202.1,3201.6,0.23160278]
[1738217351341,3.123,3202.1,3201.6,3.35502278]
[1738217353149,3.123,3202.1,3201.6,3.12342]
[1738217355548,3.123,3202.1,3201.3,6.90335149]
[1738217355917,3.123,3202.1,3201.5,3.12352]
[1738217356118,3.123,3202.1,3201.3,6.90335149]
[1738217356119,3.12262,3202.5,3201.9,2.97028149]
[1738217356355,0.7774,3202.6,3202.0,3.12304]
[1738217356515,3.12219,3202.9,3202.1,3.12295]
[1738217356716,3.12219,3202.9,3202.4,3.12265]
[1738217356944,3.12219,3202.9,3202.2,3.12277]
[1738217357144,3.12219,3202.9,3202.1,3.12295]
[1738217357333,6.24445,3202.9,3202.3,3.12273]
[1738217357656,3.12219,3202.9,3202.3,3.12273]
[1738217358552,0.03633406,3202.8,3202.3,3.12273]
[1738217359052,0.03633406,3202.8,3202.5,3.12252]
[1738217359216,0.03633406,3202.8,3202.6,3.12244]
[1738217359419,0.7893,3203.2,3202.7,3.12231]
[1738217360048,3.91119,3203.2,3202.5,6.24499]
[1738217360229,3.91119,3203.2,3202.6,3.12244]
[1738217361957,3.91119,3203.2,3202.5,3.12247]
[1738217362155,3.73436206,3203.5,3202.7,3.12234]
[1738217362156,3.12178,3203.3,3202.7,3.12234]
[1738217362318,0.8177,3203.4,3202.9,0.8124]
[1738217362523,3.12179,3203.3,3202.6,0.8124]
[1738217362754,3.12179,3203.3,3202.5,3.12252]
[1738217362994,3.12213,3203.0,3202.3,3.93506]
[1738217363155,0.8177,3202.9,3202.4,3.12264]
[1738217363656,0.8177,3202.9,3202.1,3.93527]
[1738217363869,3.12238,3202.7,3202.1,3.93527]
[1738217364224,3.828623,3202.7,3202.1,3.93527]
[1738217365014,3.828623,3202.7,3202.2,0.23147245]
[1738217365214,3.12253,3202.6,3202.2,0.23147245]
[1738217365415,0.8096,3202.4,3202.2,0.23147245]
[1738217365869,0.8244,3202.6,3202.2,3.35432245]
[1738217366021,3.94649,3203.0,3202.3,3.92568]
[1738217366356,4.653331,3203.0,3202.3,3.92568]
[1738217366661,3.12229,3202.8,3202.1,3.90389]
[1738217366871,4.54888206,3203.5,3202.6,0.781]
[1738217367175,0.45488821,3203.4,3202.6,0.781]
[1738217367668,0.45488821,3203.4,3202.7,3.1223]
[1738217368173,3.12186,3203.3,3202.7,3.1223]
[1738217368941,3.12193,3203.2,3202.6,0.781]
[1738217369137,3.90108,3203.1,3202.6,3.90345]
[1738217369472,3.90108,3203.1,3202.5,3.12254]
[1738217369659,3.90108,3203.1,3202.5,3.12249]
[1738217369976,0.7791,3203.1,3202.6,3.12245]
[1738217373378,0.45488821,3203.4,3202.7,3.92633]
[1738217373379,3.57660821,3203.4,3202.7,3.92633]
[1738217373677,0.03210301,3203.0,3202.9,3.12207]
[1738217373874,3.12136,3203.8,3203.1,3.12197]
[1738217374171,3.15258535,3203.7,3203.1,3.12197]
[1738217375183,3.15258535,3203.7,3203.2,0.8028]
[1738217375385,0.03116535,3203.7,3203.6,3.92428]
[1738217375550,0.03116535,3203.7,3203.6,6.92428]
[1738217375750,3.12034,3204.8,3204.1,3.12093]
[1738217375951,3.12034,3204.8,3204.1,6.09121149]
[1738217376580,3.8842,3205.0,3204.5,3.12061]
[1738217376857,0.764,3205.0,3204.5,3.12061]
[1738217377068,3.88414,3205.0,3204.4,2.97028149]
[1738217377268,3.88414,3205.0,3204.4,6.09096149]
[1738217377606,3.12024,3204.9,3204.3,3.12078]
[1738217378054,3.12038,3204.8,3204.2,0.7875]
[1738217378751,3.12024,3204.9,3204.3,3.12078]
[1738217378947,0.764,3205.0,3204.2,3.90833]
[1738217378948,0.764,3205.0,3204.5,3.12058]
[1738217379153,3.11993,3205.2,3204.6,3.12049]
[1738217380522,0.7781,3205.3,3204.6,3.12049]
[1738217380653,0.7781,3205.3,3204.8,3.12031]
[1738217381201,3.11961,3205.6,3204.9,3.94454]
[1738217381387,3.87061,3205.6,3204.9,3.94454]
[1738217381969,3.1195,3205.7,3204.9,3.94454]
[1738217382274,3.89667,3205.9,3205.2,3.1199]
[1738217383057,3.89668,3205.9,3205.3,3.11975]
[1738217383262,3.11954,3205.6,3204.9,0.8244]
[1738217383591,3.11962,3205.6,3204.9,3.9446]
[1738217385489,3.11962,3205.6,3205.0,3.12007]
[1738217387384,3.11922,3206.0,3205.3,3.11982]
[1738217387565,3.11924,3205.9,3205.4,0.7508]
[1738217388013,0.79832123,3206.3,3205.4,0.7508]
[1738217388166,3.11913,3206.1,3205.4,0.7508]
[1738217388368,3.11925,3205.9,3205.4,0.7508]
[1738217388569,0.02998341,3205.8,3205.4,0.7508]
[1738217390907,3.11958,3205.6,3205.1,0.7741]
[1738217391271,0.03079077,3205.5,3205.1,0.7741]
[1738217391706,3.46552785,3205.5,3204.8,0.7741]
[1738217391917,3.46552785,3205.5,3204.5,3.12057]
[1738217391918,3.1199,3205.3,3204.5,3.91757]
[1738217392121,3.12,3205.2,3204.5,3.91757]
[1738217392418,3.15080348,3205.2,3204.6,3.0]
[1738217392572,3.12005,3205.1,3204.5,3.91757]
[1738217392772,3.1509467,3205.0,3204.5,0.797]
[1738217393005,0.0307967,3205.0,3204.3,3.1208]
[1738217393217,3.12023,3204.9,3204.3,3.1208]
[1738217393497,3.12041,3204.8,3204.2,0.7665]
[1738217393824,0.03073963,3204.8,3204.2,3.88733]
[1738217394124,3.15105963,3204.8,3204.2,3.88733]
[1738217394316,0.03073963,3204.8,3204.2,3.88733]
[1738217397921,0.03073963,3204.8,3204.2,3.12083]
[1738217398425,0.34583659,3204.8,3204.1,2.97028149]